Cogmind - Beta 11.1 @@@ ROGUE MODE // 2022.12.21 @ 20:51:06 Player: Milkduds Result: Destroyed self with Grenade Launcher Performance ------------- Evolutions (0) 0 Regions Visited (2) 400 Robots Destroyed (13) 65 Value Destroyed (184) 184 Prototype IDs (0) 0 Alien Tech Used (0) 0 Bonus (0) 0 TOTAL SCORE: 649 Bonus ------- None Cogmind --------- Core Integrity 0/250 Matter 250/300 Energy 115/250 System Corruption 3% Temperature Cool (5) Movement Core (250) Ox4 Location -10/Mines Parts ------- > --- POWER (1) -------- Ion Engine > --- PROPULSION (2) --- (None) > --- UTILITY (2) ------ Small Storage Unit > --- WEAPON (2) ------- Grenade Launcher > --- INVENTORY (8) ---- Light Ion Engine Light Treads Light Treads EM Pulse Gun Peak State ------------ > --- POWER ------------ Ion Engine > --- PROPULSION ------- Wheel Compact Wheel > --- UTILITY ---------- Small Storage Unit Weapon Shielding > --- WEAPON ----------- EM Pulse Gun Small Laser > --- INVENTORY -------- Light Ion Engine Light Treads Light Treads EM Pulse Gun Grenade Launcher [Rating: 7] Favorites ----------- Power Ion Engine Engine Ion Engine Propulsion Wheel Wheel Wheel Utility Small Storage Unit Storage Small Storage Unit Protection Weapon Shielding Weapon Small Laser Energy Gun Small Laser Ballistic Gun Assault Rifle Launcher Grenade Launcher Build | -11 -10 -10 ------- Run | Scr Mat Min Slots Evolved . | . . . Power . | . . . Propulsion . | . . . Utility . | . . . Weapon . | . . . Parts Attached 15 | 6 4 5 Power 2 | 1 . 1 Engine 2 | 1 . 1 Core . | . . . Reactor . | . . . Propulsion 2 | 2 . . Treads . | . . . Leg . | . . . Wheel 2 | 2 . . Hover . | . . . Flight . | . . . Utility 2 | 1 1 . Device . | . . . Storage 1 | 1 . . Processor . | . . . Hackware . | . . . Protection 1 | . 1 . Artifact . | . . . Weapon 9 | 2 3 4 Energy Gun 4 | 2 1 1 Energy Cannon . | . . . Ballistic Gun 3 | . 1 2 Ballistic Cannon . | . . . Launcher 2 | . 1 1 Special Weapon . | . . . Impact Weapon . | . . . Slashing Weapon . | . . . Piercing Weapon . | . . . Special Melee Weapon . | . . . Unidentified Prototypes . | . . . Parts Lost 7 | . 1 6 Power 1 | . . 1 Propulsion 2 | . . 2 Utility . | . . . Weapon 4 | . 1 3 Highest Loss Streak 6 | . 1 6 To Critical Strikes . | . . . Average Slot Usage (%) 89 | . 98 80 Engine 13 | . 14 12 Wheel 26 | . 28 24 Storage 14 | . 14 14 Protection 7 | . 13 2 Energy Gun 13 | . 19 8 Ballistic Gun 12 | . 7 17 Naked Turns . | . . . Heaviest Build 15 | 13 15 14 Greatest Support 26 | 26 26 26 Greatest Overweight (x) 2 | . . 2 Average Overweight (x) . | . . . Largest Inventory Capacity 8 | 8 8 8 Average Capacity 7 | 6 8 8 Most Carried 8 | 5 8 8 Average Carried 6 | 3 6 7 Final Capacity 8 | 8 8 8 Final Carried 7 | 4 7 4 Class Distribution -------------------- 100% | Mutant Dominant Class ---------------- Mutant | -10/Materials Mutant | -10/Mines Resources | -11 -10 -10 ----------- Run | Scr Mat Min Matter Collected 417 | 212 120 85 Remotely . | . . . Salvage Created 287 | . 144 143 Parts 26 | . 18 8 Haulers Intercepted . | . . . Recyclers Shooed . | . . . Parts Field Recycled . | . . . Retrieved Matter . | . . . Parts Self-Destructed . | . . . Prevented . | . . . Kills | -11 -10 -10 ------- Run | Scr Mat Min Combat Hostiles Destroyed 19 | . 7 12 Guns 11 | . 5 6 AOE 8 | . 2 6 Classes Destroyed 4 | . 3 1 Watcher 1 | . 1 . Swarmer 10 | . 6 4 Grunt 2 | . 1 1 Assembled 7 | . . 7 Best Kill Streak 7 | . 7 7 Combat Bots Only 7 | . 6 7 Max Kills in Single Turn 3 | . 3 3 Gunslinging 1 | . . 1 Exploded 3 | . 2 3 Melee . | . . . Uniques/NPCs Destroyed . | . . . Combat | -11 -10 -10 -------- Run | Scr Mat Min Damage Taken 940 | . 223 717 Core 254 | . 43 211 Absorbed by Shields . | . . . Redirected to Shielding 41 | . 35 6 Core Remaining (%) 100 | 100 . . Volleys Fired 54 | . 17 37 Largest 2 | . 2 2 Hottest 80 | . 80 60 Shots Fired 96 | . 33 63 Gun 92 | . 32 60 Cannon . | . . . Launcher 4 | . 1 3 Special . | . . . Kinetic 50 | . 11 39 Thermal 27 | . 8 19 Explosive 4 | . 1 3 Electromagnetic 15 | . 13 2 Robot Hit Streak 7 | . 6 7 Robot Miss Streak 13 | . 2 13 Penetration Max . | . . . Secondary Targets 1 | . . 1 Max Gunslinging Chain 1 | . . 1 Shots Hit Robots 47 | . 19 28 Core Hits 30 | . 7 23 Critical Kills . | . . . Critical Parts Destroyed . | . . . Critical Strikes . | . . . Melee Attacks . | . . . Impact . | . . . Slashing . | . . . Piercing . | . . . Sneak Attacks . | . . . Combat Hostiles . | . . . Follow-up Attacks . | . . . Damage Inflicted 1035 | . 381 654 Guns 533 | . 253 280 Cannons . | . . . Explosions 501 | . 128 373 Melee . | . . . Ramming 1 | . . 1 Kinetic 250 | . 81 169 Thermal 144 | . 44 100 Explosive 501 | . 128 373 Electromagnetic 139 | . 128 11 Impact . | . . . Slashing . | . . . Piercing . | . . . Highest Corruption 3 | . . 3 Average Corruption 3 | . . 3 Corruption Purged . | . . . Corruption Blocked . | . . . Overload Shots . | . . . Overflow Damage 19 | . 19 . Projectiles . | . . . Explosions 19 | . 19 . Melee . | . . . Knockbacks . | . . . Impact . | . . . Kinetic . | . . . Secondary . | . . . Self-Inflicted Damage 94 | . . 94 Shots 3 | . . 3 Rammed 1 | . . 1 Targets Rammed 1 | . . 1 Kicked . | . . . Crushed . | . . . Highest Temperature 56 | . 56 35 Average Temperature 18 | . 19 18 Received Heat Transfer 196 | . 6 190 Siege Activations . | . . . Robots Corrupted . | . . . Combat Hostiles . | . . . Parts Fried 1 | . 1 . Impact Corruptions . | . . . Robots Melted . | . . . Combat Hostiles . | . . . Parts Melted 1 | . . 1 Heat Transferred 325 | . 100 225 Parts Sabotaged . | . . . Parts Stolen . | . . . Parts Stripped . | . . . Power Chain Reactions . | . . . Missiles Intercepted . | . . . Alert | -11 -10 -10 ------- Run | Scr Mat Min Peak Influence 226 | . 209 226 Initial 81 | . . 81 Average 120 | . 102 159 Maximum Alert Level 1 | . 1 1 Low Security (%) 81 | 100 87 72 Level 1 18 | . 12 27 Level 2 . | . . . Level 3 . | . . . Level 4 . | . . . Level 5 . | . . . High Security . | . . . Max Security . | . . . Squads Dispatched 1 | . 1 . Investigation . | . . . Extermination . | . . . Reinforcement 1 | . 1 . Assault . | . . . Garrison . | . . . Intercept . | . . . Searches Triggered . | . . . Construction Impeded . | . . . Haulers Reinforced . | . . . Active Scanning Responses . | . . . Cargo Convoy Interrupts . | . . . Stealth | -11 -10 -10 --------- Run | Scr Mat Min Distress Signals 1 | . 1 . Communications Jammed . | . . . Distress Signals . | . . . Times Spotted 33 | . 10 23 Peak Tracking Total 16 | . 4 16 Tactical Retreats 2 | . . 2 Traps | -11 -10 -10 ------- Run | Scr Mat Min Traps Triggered . | . . . Indirectly . | . . . Trap Hack Attempts . | . . . Triggered . | . . . Disarmed . | . . . Reprogrammed . | . . . Reused . | . . . Traps Extracted . | . . . Installed . | . . . Triggered . | . . . Machines | -11 -10 -10 ---------- Run | Scr Mat Min Machines Disabled . | . . . Max in Single Turn . | . . . Machines Sabotaged . | . . . Garrisons Compromised . | . . . Overloaded Fab Kills . | . . . Hacking | -11 -10 -10 --------- Run | Scr Mat Min Machines Accessed 3 | . 2 1 Terminals 2 | . 1 1 Fabricators . | . . . Repair Stations . | . . . Recycling Units 1 | . 1 . Scanalyzers . | . . . Garrison Access . | . . . Total Hacks 7 | . 3 4 Successful 6 | . 3 3 Failed 1 | . . 1 Catastrophic . | . . . Database Lockouts . | . . . Manual . | . . . Terminals 5 | . 1 4 Fabricators . | . . . Repair Stations . | . . . Recycling Units 2 | . 2 . Scanalyzers . | . . . Garrison Access . | . . . Terminal Hacks 4 | . 1 3 Record 3 | . . 3 Alert Level 1 | . 1 . Fabricator Hacks . | . . . Repair Station Hacks . | . . . Recycling Unit Hacks 2 | . 2 . Process 1 | . 1 . Report Inventory 1 | . 1 . Scanalyzer . | . . . Garrison Access Hacks . | . . . Unauthorized Hacks . | . . . Terminals . | . . . Fabricators . | . . . Repair Stations . | . . . Recycling Units . | . . . Scanalyzers . | . . . Garrison Access . | . . . Data Cores Recovered . | . . . Used . | . . . Hacking Detections 2 | . 1 1 Full Trace Events 1 | . . 1 Feedback Events . | . . . Feedback Blocked . | . . . Robot Schematics Acquired . | . . . Robots Built . | . . . Authchips . | . . . Time . | . . . Total Robot Build Rating . | . . . Part Schematics Acquired . | . . . Parts Built . | . . . Authchips . | . . . Time . | . . . Total Part Build Rating . | . . . Parts Repaired . | . . . Time . | . . . Parts Recycled . | . . . Recycled Matter 168 | . 168 . Retrieved Matter . | . . . Retrieved Components . | . . . Parts Scanalyzed . | . . . Part Schematics Acquired . | . . . Parts Damaged . | . . . Bothacking | -11 -10 -10 ------------ Run | Scr Mat Min Used RIF Installer . | . . . Robots Hacked . | . . . Non-combat . | . . . Combat . | . . . Robot Hacks Applied . | . . . Relay Couplers Released . | . . . Fabnet Peak Effective % . | . . . Robots Rewired . | . . . Allies Hacked . | . . . Hacks Repelled . | . . . Allies | -11 -10 -10 -------- Run | Scr Mat Min Total Allies . | . . . Largest Group . | . . . Highest-Rated Group . | . . . Highest-Rated Ally . | . . . Total Orders . | . . . Ally Attacks . | . . . Total Damage . | . . . Kills . | . . . Allies Corrupted . | . . . Allies Melted . | . . . Intel | -11 -10 -10 ------- Run | Scr Mat Min Robot Analysis Total . | . . . Derelict Logs Recovered 1 | . . 1 Drone Launches . | . . . Drone Recoveries . | . . . Exploration | -11 -10 -10 ------------- Run | Scr Mat Min Turns Passed 649 | 53 288 308 Spaces Moved 517 | 53 246 218 Core 28 | 24 . 4 Treads . | . . . Legs . | . . . Wheels 489 | 29 246 214 Hover . | . . . Flight . | . . . Fastest Speed 50 | 50 90 90 Average Speed 88 | 71 90 91 Slowest Speed 150 | 90 90 150 Overloaded Moves . | . . . Propulsion Burnouts . | . . . Robots Hopped . | . . . Cave-ins Triggered . | . . . Exploration Rate (%) 34 | 3 47 52 Regions Visited 2 Branch Regions 1 Pre-discovered Areas . | . . . Known Exits Taken . | . . . Unknown Exits Taken 2 | 1 1 . Scrap Searched . | . . . Spaces Dug . | . . . Terrain Destroyed 33 | . 4 29 Melee . | . . . Projectile . | . . . AOE 33 | . 4 29 Terrain Rammed . | . . . Walls Destroyed . | . . . Machines Disabled . | . . . Actions | -11 -10 -10 --------- Run | Scr Mat Min Total 615 | 66 278 271 Wait 11 | . 5 6 Move 515 | 52 245 218 Hop . | . . . Pick Up 15 | 8 6 1 Fast Attach 2 | 2 . . Attach 10 | 4 2 4 Detach . | . . . Swap 3 | . 2 1 Drop 4 | . 1 3 Fire 54 | . 17 37 Melee . | . . . Ram 1 | . . 1 Kick . | . . . Crush . | . . . Escape Stasis . | . . . Rewire . | . . . Trap . | . . . Miscellaneous . | . . . Route ------- -11/Scrapyard -10/Materials (discovered 2 exits: [*Mat] / *Min) -10/Mines History --------- Turn | Location | Event 3 | -11/Scrapyard | Discovered new exit (range 15) 54 | -11/Scrapyard | Entered Materials 286 | -10/Materials | Discovered new exit (range 8) 300 | -10/Materials | Discovered new exit (range 12) 308 | -10/Materials | Build established: Mutant 342 | -10/Materials | Entered Mines 359 | -10/Mines | Met a Derelict bent on vengeance 397 | -10/Mines | Learned Materials security intel 595 | -10/Mines | Assembled infested the area 617 | -10/Mines | Core integrity fell below 50% 647 | -10/Mines | Core integrity fell below 20% 650 | -10/Mines | Destroyed self with Grenade Launcher Last Messages --------------- 00614_ Slammed into as-76759. 00614_ Lgt. Assault Rifle broken. 00614_ Destabilizing: Short circuit. 00619_ Wheel destroyed. 00619_ Broken Lgt. Assault Rifle destroyed. 00619_ System corrupted by crushing effect (+1). 00619_ System corrupted by crushing effect (+2). 00619_ as-13666 destroyed. 00620_ Com. Wheel destroyed. 00623_ Critical hit (Burn: +80). 00635_ as-76759 destroyed. 00635_ Lgt. Assault Rifle destroyed. 00638_ Acquired 12 matter. 00643_ EM Pulse Gun destroyed. 00646_ as-31495 destroyed. 00648_ as-73453 destroyed. 00648_ as-27292 destroyed. 00648_ as-81744 destroyed. 00650_ as-57641 destroyed. 00650_ as-91513 destroyed. Map ----- +----------------------------------------------------+ | | | | | | | | | ???????????????????????????????? | | ???????????????????????????????? | | ???????????????????????????????? | | ???????????????????????????????? | | ???????????????????????????????? | | ???????????????????????????????? | | ???????#???????????????????????? | | ??????? ???????????????????????? | | ??????? ???????????????????????? | | ??????? ???????????????????????? | | ??????? ???????????????????????? | | ??????? ???????????????????????? | | ??????? ???????????????????????? | | ??????# #??????????????????????? | | ??????# #??????????????????????? | | ??????# #?? ???????????????????? | | ??????# #?? ???????????????????? | | ??????# #?? ???????????????????? | | ????### ##? ???????????????????? | | ????# ## ???????????????????? | | ?????# # ???????????????????? | | ?????# @ # ??????????????###### | | ????# % # #?????????????# | | ????# # #?????????????# ### | | ????# a #?###########?????# | | ????# # #?#T #?????# | | ????## % # #?## #?? ??# | | ?????## ## $#??# #?? ??# | | ??????# #? #??# """ #?? ??# | | ??????# ## #### """ #?# #?## | | ??????# """ #?# #??? | | ??????##### ### #?# #??? | | ???????????? ??### ######?# #??? | | ????????????# ???# #??????# #??? | | ?????????????#???# #?????## ##?? | | ??????????????#### ####### ##? | | ??????????????# #? | | ??????????????# #? | | ??????????????# ###### ## | | ??????????????# #????# | | ??????????????# #?????# | | ??????????????# #?????# ### | | ??????????????# #?????# ### | | ??????????????# #????## % | | ??????????????# #???## #### | | ?????????####?# #???# #??? | +----------------------------------------------------+ Best States ------------- Heat Dissipation 25 Energy Generation 10 Energy Capacity 250 Matter Stores 300 Matter Capacity 300 Sight Range 16 Terrain Scan Density 10 Weapon Shielding 33 Evasion (%) 50 Item Schematics ----------------- None Robot Schematics ------------------ None Fabricated ------------ Nothing Alien Tech Used ----------------- None Achievements -------------- None Challenges ------------ None Game ------ Seed BoreActuatorBay Manual? 0 Play Time 00:13:50 Cumulative 4.8 hours Start 2022.12.21 @ 20:36:55 End 2022.12.21 @ 20:51:06 Sessions 1 Manual Loads 0 Difficulty Rogue Special Mode None Game No. 9 Rogue 9 Adventurer 0 Explorer 0 Win Type - Total 0 Types 0/0/0/0/0/0/0/0/0 Lore% 7 Gallery% 9 Achievement% 11 Wizard Run 0 Options --------- ASCII 0 Keyboard 0 Movement Mouse Keybinds 0 Fullscreen 1 Font 24/Smallcaps Map View 76x50 Tactical HUD 1 Map Filters NONE Filters NONE Steam 1 RUN: 398909ef-9148-4080-b3d4-842d115d44ca